Cogmind - Beta 13 @@@ ROGUE MODE // 2024.05.01 @ 12:15:52 Player: Rubbe Result: Destroyed by G-47 Trooper with Particle Gun Performance ------------- Evolutions (2) 1000 Regions Visited (4) 800 Robots Destroyed (61) 305 Value Destroyed (2033) 2033 Prototype IDs (3) 60 Alien Tech Used (0) 0 Bonus (594) 594 TOTAL SCORE: 4792 Bonus ------- Pacifist 200 High Alert Combat Kills 149 Follower Combat Kills 245 Cogmind --------- Core Integrity 0/550 Matter 300/300 Energy 140/140 System Corruption 0% Temperature Cool (9) Movement Walking (680) Ox8 Location -8/Materials Parts ------- > --- POWER (1) -------- Light Deuterium Engine > --- PROPULSION (4) --- Aluminum Leg > --- UTILITY (4) ------ Huge Storage Unit > --- WEAPON (2) ------- Katana > --- INVENTORY (25) --- Light Nuclear Core Medium Matter Pod (100) Targeting Computer Improved Targeting Computer Improved Targeting Computer Light Armor Plating Light Armor Plating Light Armor Plating Drone Bay (2/2) Drone Bay (2/2) Drone Bay (2/2) Drone Bay (2/2) Drone Bay (2/2) Drone Bay (2/2) Drone Bay (2/2) Improved Light Cannon Improved Light Cannon Improved Light Cannon Improved Light Cannon Peak State ------------ > --- POWER ------------ Light Angular Momentum Engine > --- PROPULSION ------- Aluminum Leg Aluminum Leg Aluminum Leg Aluminum Leg > --- UTILITY ---------- Huge Storage Unit Improved Targeting Computer Light Regenerative Plating > --- WEAPON ----------- Improved Light Cannon Improved Light Cannon > --- INVENTORY -------- Ion Engine Aluminum Leg Aluminum Leg Aluminum Leg Cooling System Improved Targeting Computer Improved Targeting Computer Improved Targeting Computer Drone Bay Drone Bay Drone Bay Drone Bay Drone Bay Drone Bay Drone Bay Beam Rifle Heavy Assault Rifle Improved Assault Rifle Improved Light Cannon Improved Light Cannon Improved Light Cannon Improved Light Cannon Improved Light Cannon [Rating: 28] Favorites ----------- Power Ion Engine Engine Ion Engine Propulsion Aluminum Leg Leg Aluminum Leg Utility Medium Armor Plating Device Cooling System Storage Huge Storage Unit Processor Improved Targeting Computer Protection Medium Armor Plating Weapon Improved Light Cannon Energy Gun Small Laser Ballistic Gun Improved Assault Rifle Ballistic Cannon Improved Light Cannon Slashing Weapon Katana Build | -11 -10 -9 -9 -8 ------- Run | Yrd Mat Mat Sto Mat Slots Evolved 4 | . . 2 . 2 Power . | . . . . . Propulsion 2 | . . 1 . 1 Utility 2 | . . 1 . 1 Weapon . | . . . . . Parts Attached 57 | 6 2 2 25 22 Power 5 | 1 . . 2 2 Engine 5 | 1 . . 2 2 Core . | . . . . . Reactor . | . . . . . Propulsion 18 | 2 . . 6 10 Treads . | . . . . . Leg 18 | 2 . . 6 10 Wheel . | . . . . . Hover . | . . . . . Flight . | . . . . . Utility 13 | 1 . 2 7 3 Device 1 | . . . . 1 Storage 4 | 1 . . 2 1 Processor 2 | . . . 1 1 Hackware . | . . . . . Protection 6 | . . 2 4 . Artifact . | . . . . . Weapon 21 | 2 2 . 10 7 Energy Gun 4 | 1 . . 1 2 Energy Cannon . | . . . . . Ballistic Gun 7 | 1 1 . 4 1 Ballistic Cannon 9 | . 1 . 5 3 Launcher . | . . . . . Special Weapon . | . . . . . Impact Weapon . | . . . . . Slashing Weapon 1 | . . . . 1 Piercing Weapon . | . . . . . Special Melee Weapon . | . . . . . Unidentified Prototypes 3 | . . . 3 . Parts Lost 25 | . . . 5 20 Power 1 | . . . . 1 Propulsion 9 | . . . . 9 Utility 6 | . . . 3 3 Weapon 9 | . . . 2 7 Highest Loss Streak 9 | . . . 2 9 To Critical Strikes . | . . . . . Average Slot Usage (%) 90 | . 85 83 92 87 Engine 10 | . 14 11 11 8 Leg 28 | . 28 22 28 30 Device 2 | . . . . 5 Storage 10 | . 14 11 11 8 Processor 3 | . . . 1 8 Protection 14 | . . 17 19 7 Ballistic Gun 5 | . 14 11 7 . Ballistic Cannon 13 | . 5 11 14 14 Naked Turns . | . . . . . Heaviest Build 107 | 10 13 27 107 99 Greatest Support 40 | 20 20 20 30 40 Greatest Overweight (x) 29 | 3 . 1 5 29 Average Overweight (x) 1 | . . . 1 2 Largest Inventory Capacity 25 | 8 8 8 25 25 Average Capacity 19 | 7 8 8 18 24 Most Carried 25 | 5 5 8 25 25 Average Carried 16 | 2 2 6 14 22 Final Capacity 25 | 8 8 8 25 25 Final Carried 24 | 2 5 8 24 19 Class Distribution -------------------- 56% | Mutant 43% | Scavenger-Mutant Dominant Class ---------------- Mutant | -10/Materials Mutant | -9/Materials Mutant | -9/Storage Scavenger-Mutant | -8/Materials Resources | -11 -10 -9 -9 -8 ----------- Run | Yrd Mat Mat Sto Mat Matter Collected 1742 | 212 . . 814 716 Remotely . | . . . . . Salvage Created 2064 | . . . 1143 921 Parts 125 | . . . 75 50 Haulers Intercepted 2 | . . . 1 1 Recyclers Shooed 2 | . . . 2 . Parts Field Recycled . | . . . . . Retrieved Matter . | . . . . . Parts Self-Destructed . | . . . . . Prevented . | . . . . . Kills | -11 -10 -9 -9 -8 ------- Run | Yrd Mat Mat Sto Mat Combat Hostiles Destroyed 49 | . . . 28 21 Guns 14 | . . . 8 6 Cannons 34 | . . . 20 14 Classes Destroyed 13 | . . . 8 5 Worker 3 | . . . . 3 Hauler 2 | . . . 1 1 Recycler 1 | . . . 1 . Mechanic 2 | . . . 2 . Watcher 4 | . . . 2 2 Swarmer 7 | . . . 4 3 Grunt 23 | . . . 13 10 Brawler 2 | . . . . 2 Duelist 1 | . . . 1 . Sentry 13 | . . . 10 3 Specialist 1 | . . . . 1 Hunter 1 | . . . . 1 Heavy 1 | . . . . 1 Best Kill Streak 7 | . . . 5 7 Combat Bots Only 7 | . . . 5 7 Max Kills in Single Turn 2 | . . . 2 1 Gunslinging . | . . . . . Exploded . | . . . . . Melee . | . . . . . Uniques/NPCs Destroyed . | . . . . . Combat | -11 -10 -9 -9 -8 -------- Run | Yrd Mat Mat Sto Mat Hostile Shots Fired 410 | . . . 155 255 Missed 126 | . . . 46 80 Damage Taken 4186 | . . . 1359 2827 Core 636 | . . . 85 551 Absorbed by Shields . | . . . . . Regen/Repaired (Parts) 607 | . . . . 607 Core Remaining (%) 92 | 100 100 . 78 . Volleys Fired 167 | . . . 71 96 Largest 2 | . . . 2 2 Hottest 100 | . . . 78 100 Shots Fired 295 | . . . 140 155 Gun 98 | . . . 42 56 Cannon 197 | . . . 98 99 Launcher . | . . . . . Special . | . . . . . Kinetic 262 | . . . 140 122 Thermal 33 | . . . . 33 Explosive . | . . . . . Electromagnetic . | . . . . . Robot Hit Streak 13 | . . . 6 13 Robot Miss Streak 4 | . . . 3 4 Penetration Max . | . . . . . Secondary Targets . | . . . . . Shots Hit Robots 167 | . . . 78 89 Core Hits 87 | . . . 42 45 Critical Kills . | . . . . . Critical Parts Destroyed 1 | . . . 1 . Critical Strikes 5 | . . . 1 4 Burn 1 | . . . . 1 Destroy 1 | . . . 1 . Blast 3 | . . . . 3 Melee Attacks 1 | . . . . 1 Impact . | . . . . . Slashing 1 | . . . . 1 Piercing . | . . . . . Sneak Attacks . | . . . . . Combat Hostiles . | . . . . . Follow-up Attacks . | . . . . . Damage Inflicted 3621 | . . . 1697 1924 Guns 1056 | . . . 483 573 Cannons 2554 | . . . 1203 1351 Explosions . | . . . . . Melee . | . . . . . Ramming 11 | . . . 11 . Kinetic 3325 | . . . 1686 1639 Thermal 285 | . . . . 285 Explosive . | . . . . . Electromagnetic . | . . . . . Impact . | . . . . . Slashing . | . . . . . Piercing . | . . . . . Highest Corruption . | . . . . . Average Corruption . | . . . . . Corruption Purged . | . . . . . Corruption Blocked . | . . . . . Overload Shots . | . . . . . Overflow Damage 8 | . . . 8 . Projectiles 8 | . . . 8 . Explosions . | . . . . . Melee . | . . . . . Knockbacks 14 | . . . 5 9 Impact . | . . . . . Kinetic 14 | . . . 5 9 Secondary . | . . . . . Self-Inflicted Damage . | . . . . . Shots . | . . . . . Rammed . | . . . . . Targets Rammed 2 | . . . 2 . Kicked 2 | . . . 2 . Crushed . | . . . . . Highest Temperature 395 | . . . 274 395 Average Temperature 81 | . . . 62 120 Received Heat Transfer 1545 | . . . 555 990 Effects 4 | . . . . 4 Shutdowns 2 | . . . . 2 Short Circuit 1 | . . . . 1 Damage (minor) 1 | . . . . 1 Siege Activations . | . . . . . Robots Corrupted . | . . . . . Combat Hostiles . | . . . . . Parts Fried . | . . . . . Impact Corruptions . | . . . . . Robots Melted 1 | . . . . 1 Combat Hostiles 1 | . . . . 1 Parts Melted . | . . . . . Heat Transferred 814 | . . . . 814 Parts Sabotaged . | . . . . . Parts Stolen . | . . . . . Parts Stripped . | . . . . . Power Chain Reactions . | . . . . . Alert | -11 -10 -9 -9 -8 ------- Run | Yrd Mat Mat Sto Mat Peak Influence 650 | . . 5 650 459 Initial 250 | . . . 1 250 Average 318 | . . 4 437 191 Maximum Alert Level 2 | . . . 2 2 Low Security (%) 34 | 100 100 100 7 65 Level 1 29 | . . . 34 28 Level 2 35 | . . . 57 6 Level 3 . | . . . . . Level 4 . | . . . . . Level 5 . | . . . . . High Security . | . . . . . Max Security . | . . . . . Squads Dispatched 7 | . . . 5 2 Investigation 1 | . . . 1 . Extermination . | . . . . . Reinforcement 3 | . . . 1 2 Assault 3 | . . . 3 . Garrison . | . . . . . Intercept . | . . . . . Searches Triggered . | . . . . . Construction Impeded . | . . . . . Haulers Reinforced . | . . . . . Active Scanning Responses . | . . . . . Cargo Convoy Interrupts . | . . . . . Stealth | -11 -10 -9 -9 -8 --------- Run | Yrd Mat Mat Sto Mat Distress Signals 8 | . . . 6 2 Communications Jammed . | . . . . . Distress Signals . | . . . . . Times Spotted 84 | . . . 48 36 Peak Tracking Total 10 | . . . 10 8 Tactical Retreats 5 | . . . 5 . Traps | -11 -10 -9 -9 -8 ------- Run | Yrd Mat Mat Sto Mat Traps Triggered 3 | . . . 3 . Indirectly . | . . . . . Trap Hack Attempts . | . . . . . Triggered . | . . . . . Disarmed . | . . . . . Reprogrammed . | . . . . . Reused . | . . . . . Traps Extracted . | . . . . . Installed . | . . . . . Triggered . | . . . . . Machines | -11 -10 -9 -9 -8 ---------- Run | Yrd Mat Mat Sto Mat Machines Disabled 4 | . . . 1 3 Max in Single Turn 1 | . . . 1 1 Machines Repaired . | . . . . . Machines Dismantled . | . . . . . Machines Sabotaged . | . . . . . Overloaded Fab Kills . | . . . . . Hacking | -11 -10 -9 -9 -8 --------- Run | Yrd Mat Mat Sto Mat Machines Accessed 10 | . . 2 5 3 Terminals 8 | . . 2 5 1 Fabricators . | . . . . . Repair Stations 1 | . . . . 1 Recycling Units . | . . . . . Scanalyzers 1 | . . . . 1 Garrison Access . | . . . . . Total Hacks 19 | . . 3 9 7 Successful 11 | . . 2 5 4 Failed 8 | . . 1 4 3 Catastrophic . | . . . . . Database Lockouts . | . . . . . Manual 3 | . . . 3 . Terminals 15 | . . 3 9 3 Fabricators . | . . . . . Repair Stations 3 | . . . . 3 Recycling Units . | . . . . . Scanalyzers 1 | . . . . 1 Garrison Access . | . . . . . Terminal Hacks 9 | . . 2 5 2 Open Door 3 | . . . 3 . Alert Level 1 | . . . . 1 Unreport Threat 1 | . . . . 1 Investigation Status 1 | . . . 1 . Recall Investigation 1 | . . . 1 . Hauler Manifests 1 | . . 1 . . Zone Layout 1 | . . 1 . . Fabricator Hacks . | . . . . . Repair Station Hacks 2 | . . . . 2 Scan Component 1 | . . . . 1 Repair 1 | . . . . 1 Recycling Unit Hacks . | . . . . . Scanalyzer . | . . . . . Garrison Access Hacks . | . . . . . Unauthorized Hacks . | . . . . . Terminals . | . . . . . Fabricators . | . . . . . Repair Stations . | . . . . . Recycling Units . | . . . . . Scanalyzers . | . . . . . Garrison Access . | . . . . . Data Cores Recovered . | . . . . . Used . | . . . . . Hacking Detections 4 | . . 1 2 1 Full Trace Events . | . . . . . Feedback Events . | . . . . . Feedback Blocked . | . . . . . Robot Schematics Acquired . | . . . . . Robots Built . | . . . . . Authchips . | . . . . . Time . | . . . . . Total Robot Build Rating . | . . . . . Part Schematics Acquired . | . . . . . Parts Built . | . . . . . Authchips . | . . . . . Time . | . . . . . Total Part Build Rating . | . . . . . Parts Repaired 1 | . . . . 1 Time 26 | . . . . 26 Parts Recycled . | . . . . . Recycled Matter . | . . . . . Retrieved Matter . | . . . . . Retrieved Components . | . . . . . Parts Scanalyzed . | . . . . . Part Schematics Acquired . | . . . . . Parts Damaged . | . . . . . Bothacking | -11 -10 -9 -9 -8 ------------ Run | Yrd Mat Mat Sto Mat Used RIF Installer . | . . . . . Robots Hacked . | . . . . . Non-combat . | . . . . . Combat . | . . . . . Robot Hacks Applied . | . . . . . Relay Couplers Released . | . . . . . Fabnet Peak Effective % . | . . . . . Robots Rewired . | . . . . . Allies Hacked . | . . . . . Hacks Repelled . | . . . . . Allies | -11 -10 -9 -9 -8 -------- Run | Yrd Mat Mat Sto Mat Total Allies 2 | . . . 2 . Largest Group 2 | . . . 2 . Highest-Rated Group 62 | . . . 62 . Highest-Rated Ally 31 | . . . 31 . Total Orders . | . . . . . Ally Attacks 41 | . . . 41 . Total Damage 632 | . . . 632 . Kills 10 | . . . 10 . Allies Corrupted . | . . . . . Allies Melted . | . . . . . Intel | -11 -10 -9 -9 -8 ------- Run | Yrd Mat Mat Sto Mat Robot Analysis Total . | . . . . . Derelict Logs Recovered . | . . . . . Drone Launches . | . . . . . Drone Recoveries . | . . . . . Exploration | -11 -10 -9 -9 -8 ------------- Run | Yrd Mat Mat Sto Mat Turns Passed 3798 | 65 144 103 2201 1285 Spaces Moved 1271 | 54 116 58 703 340 Core 24 | 21 . . . 3 Treads . | . . . . . Legs 1247 | 33 116 58 703 337 Wheels . | . . . . . Hover . | . . . . . Flight . | . . . . . Fastest Speed 50 | 50 120 120 190 120 Average Speed 238 | 95 120 165 254 280 Slowest Speed 1500 | 200 120 190 470 1500 Overloaded Moves . | . . . . . Propulsion Burnouts . | . . . . . Robots Hopped . | . . . . . Cave-ins Triggered . | . . . . . Exploration Rate (%) 27 | 4 20 6 78 31 Regions Visited 4 Branch Regions 1 Pre-discovered Areas . | . . . . . Known Exits Taken . | . . . . . Unknown Exits Taken 4 | 1 1 1 1 . Scrap Searched . | . . . . . Spaces Dug . | . . . . . Terrain Destroyed 9 | . . . 5 4 Melee . | . . . . . Projectile 9 | . . . 5 4 AOE . | . . . . . Terrain Rammed . | . . . . . Walls Destroyed . | . . . . . Machines Disabled . | . . . . . Actions | -11 -10 -9 -9 -8 --------- Run | Yrd Mat Mat Sto Mat Total 1759 | 67 120 66 983 523 Wait 137 | . . . 118 19 Move 1267 | 53 115 57 702 340 Hop . | . . . . . Pick Up 97 | 8 3 6 44 36 Fast Attach . | . . . . . Attach 41 | 6 . 2 15 18 Detach 1 | . . . 1 . Swap 16 | . 2 . 10 4 Drop 30 | . . 1 20 9 Fire 167 | . . . 71 96 Melee 1 | . . . . 1 Ram . | . . . . . Kick 2 | . . . 2 . Crush . | . . . . . Escape Stasis . | . . . . . Rewire . | . . . . . Trap . | . . . . . Miscellaneous . | . . . . . Route ------- -11/Scrapyard -10/Materials -9/Materials -9/Storage -8/Materials History --------- Turn | Location | Event 7 | -11/Scrapyard | Discovered new exit (range 14) 66 | -11/Scrapyard | Entered Materials 190 | -10/Materials | Discovered new exit (range 10) 210 | -10/Materials | Entered another Materials area 210 | -9/Materials | Evolved 2 slots: Propulsion x1, Utility x1 281 | -9/Materials | Discovered new exit (range 6) 302 | -9/Materials | Build established: Mutant 313 | -9/Materials | Entered Storage 332 | -9/Storage | Met a pair of Derelict thieves 1513 | -9/Storage | First assault squad dispatched 2034 | -9/Storage | Build established: Scavenger-Mutant 2391 | -9/Storage | Found Prototype Protection 2392 | -9/Storage | Identified Lgt. Regenerative Plating 2465 | -9/Storage | Discovered new exit (range 16) 2514 | -9/Storage | Entered Materials 2514 | -8/Materials | Evolved 2 slots: Propulsion x1, Utility x1 2625 | -8/Materials | Repaired Huge Storage Unit 2815 | -8/Materials | Destroyed 7 combat bots 3560 | -8/Materials | Lost 9 parts (4n2u3w) 3581 | -8/Materials | Core integrity fell below 50% 3602 | -8/Materials | Build established: Mutant 3615 | -8/Materials | Lost 3 parts (1p1n1w) 3679 | -8/Materials | Lost 3 parts (1u2w) 3720 | -8/Materials | Core integrity fell below 20% 3768 | -8/Materials | Lost 3 parts (3n) 3799 | -8/Materials | Destroyed by G-47 Trooper with Particle Gun Last Messages --------------- M-13 Machinist fits Backup Propulsion I on W-25 Informer. K-01 Serf collects debris. R-06 Scavenger collects Flight Unit. M-13 Machinist repairs W-25 Informer. R-06 Scavenger collects Flight Unit. K-01 Serf collects debris. R-06 Scavenger collects Lgt. Nuclear Core. R-06 Scavenger collects Prototype Engine. R-06 Scavenger collects Terrain Scan Processor. S-10 Pest destroyed. K-01 Serf collects debris. R-06 Scavenger collects Wheel. K-01 Serf collects debris. Acquired 29 matter. K-01 Serf collects debris. R-06 Scavenger destroyed. K-01 Serf collects debris. Beam Rifle destroyed. K-01 Serf collects debris. Map ----- +----------------------------------------------------+ | ?????????????????????????????????????????????????? | | ?????????????????????????????????????????????????? | | ?????????????????????????????????????????????????? | | ?????????????????????????????????????????????????? | | ?????????????????????????????????????????????????? | | ?????????????????????????????????????????????????? | | ???????????????????????# ??????????????????????? | | ???????????????????????# ??????????????????????? | | ???????????????????????# ?????????????########## | | ???????????????????????# ?????????????# | | ???????????????????????# ############## """ | | ???????????????????????# ## # """"" | | ???????????????????????# ## # """"" | | ???????????????????????# ## # """"" | | ???????????????????????# ## + """ | | ???????????????????????# ## # | | ???????????????????????# ## !*[[% # | | ??????????????????????## %##=[![*[% ####+##### | | ???????????############*!!%%###+#+######## # # | | ??????????? %=%*! % !!! ##? | | ??????????? =%[=% % =**!!%! %% #?? | | ??????????? ==% %%% ==%%%%% * # # | | ??????????????## #### kkg ############## % ### | | ???????????????????######g#######????????### ###?? | | ???????????????????# ! #?????????##+##### | | ???????????????????# @ #?????????# [ # | | ???????????????????# """ """ #?????????# "" # | | ???????????????????# """ """ ! #?????????# """ # | | ???????????????????# """ """ #?????????# """ # | | ???????????????????######################## """ # | | ????????????????????????????????# # # | | ????????????????????????????????#! ###+#### | | ????????????????????????????????# ] #% | | ????????????????????????????????# + | | ????????????????????????????????# = # % "T | | ????????????????????????????????# =# | | ????????????????????????????????# # | | ????????????????????????????????#= = # % | | ????????????????????????????????#####+##### ^ | | ????????????????????????????????????# ????#^ "" | | ????????????????????????????????????# ????# "" % | | ????????????????????????????????????#?????# "" | | ????????????????????????????????????# #####^ | | ????????????????????????????????????+ %% | | ????????????????????????????????????# "" | | ????????????????????????????????????? "" % | | ??????????????????????????????????????#+### ""=/ | | ??????????????????????????????????????????# ^ | | ??????????????????????????????????????????# ^ | | ??????????????????????????????????????????# """ | +----------------------------------------------------+ Best States ------------- Heat Dissipation 53 Energy Generation 18 Energy Capacity 250 Matter Stores 300 Matter Capacity 300 Sight Range 16 Terrain Scan Density 10 Armor Coverage 450 Evasion (%) 55 Targeting Accuracy 12 Item Schematics ----------------- None Robot Schematics ------------------ None Fabricated ------------ Nothing Alien Tech Used ----------------- None Achievements -------------- Significant Disruption Slippery One Challenges ------------ None Game ------ Seed RefineryCoilDoublenader Manual? 0 Play Time 00:30:09 Cumulative 4.5 hours Start 2024.05.01 @ 11:49:08 End 2024.05.01 @ 12:15:52 Sessions 1 Manual Loads 0 Difficulty Rogue Special Mode None Game No. 16 Rogue 16 Adventurer 0 Explorer 0 Win Type - Total 0 Types 0/0/0/0/0/0/0/0/0 Lore% 7 Gallery% 12 Achievement% 12 Wizard Run 0 Options --------- Layout 1 ASCII 0 Keyboard 0 Movement Mouse Keybinds 0 Fullscreen 1 Font 24/Smallcaps Map View 50x35 Zoom Use 0% Tactical HUD 0 Map Filters NONE Filters NONE Steam 1 RUN: 4bac3677-c344-4453-959e-d1648dd38a0e